Cogmind - Beta 15 @@@ ROGUE MODE // 2025.07.19 @ 14:49:05 Player: K0T Result: Destroyed by YI-UF0 with YI-UF0's Doublenader Performance ------------- Evolutions (0) 0 Regions Visited (2) 400 Robots Destroyed (16) 80 Value Destroyed (370) 370 Prototype IDs (2) 40 Alien Tech Used (0) 0 Bonus (-369) -369 TOTAL SCORE: 521 Bonus ------- Friendly Fire -369 Cogmind --------- Core Integrity 0/250 Matter 254/300 Energy 25/100 System Corruption 1% Temperature Cool (0) Movement Treading (160) Location -10/Mines Parts ------- > --- POWER (1) -------- (None) > --- PROPULSION (2) --- Improved Treads > --- UTILITY (2) ------ Medium Storage Unit Recalibrator > --- WEAPON (2) ------- Improved Assault Rifle > --- INVENTORY (10) --- Improved Treads Improved Flight Unit Improved Flight Unit Improved Flight Unit Improved Heat Sink Large Storage Unit Huge Storage Unit Seismic Detector Peak State ------------ > --- POWER ------------ Light Nuclear Core > --- PROPULSION ------- Improved Flight Unit Improved Flight Unit > --- UTILITY ---------- Improved Heat Sink Medium Storage Unit > --- WEAPON ----------- Medium Laser Improved Assault Rifle > --- INVENTORY -------- Improved Treads Improved Treads Improved Treads Improved Flight Unit Improved Flight Unit Large Storage Unit Recalibrator Light Assault Rifle Improved Assault Rifle Grenade Launcher [Rating: 19] Favorites ----------- Power Light Nuclear Core Engine Ion Engine Power Core Light Nuclear Core Propulsion Improved Flight Unit Treads Light Treads Flight Unit Improved Flight Unit Utility Medium Storage Unit Device Improved Heat Sink Storage Medium Storage Unit Weapon Medium Laser Energy Gun Medium Laser Ballistic Gun Improved Assault Rifle Launcher Grenade Launcher Build | -11 -10 -10 ------- Run | Yrd Mat Min Slots Evolved . | . . . Power . | . . . Propulsion . | . . . Utility . | . . . Weapon . | . . . Parts Attached 21 | 6 12 3 Power 2 | 1 1 . Engine 1 | 1 . . Core 1 | . 1 . Reactor . | . . . Propulsion 7 | 2 3 2 Treads 4 | 2 . 2 Leg . | . . . Wheel . | . . . Hover . | . . . Flight 3 | . 3 . Utility 6 | 1 5 . Device 4 | . 4 . Storage 2 | 1 1 . Processor . | . . . Hackware . | . . . Protection . | . . . Artifact . | . . . Weapon 6 | 2 3 1 Energy Gun 2 | 2 . . Energy Cannon . | . . . Ballistic Gun 3 | . 3 . Ballistic Cannon . | . . . Launcher 1 | . . 1 Special Weapon . | . . . Impact Weapon . | . . . Slashing Weapon . | . . . Piercing Weapon . | . . . Special Melee Weapon . | . . . Unidentified Prototypes 2 | . 2 . Parts Lost 6 | . 1 5 Power 2 | . 1 1 Propulsion 2 | . . 2 Utility . | . . . Weapon 2 | . . 2 Highest Loss Streak 5 | . 1 5 To Critical Strikes . | . . . Average Backups 8 | 2 8 10 Power . | . . . Propulsion 3 | . 3 5 Utility 2 | . 2 4 Weapon 2 | 1 2 1 Tool/Special . | . . . Unused Backups 13 | 1 7 5 Power 1 | 1 . . Propulsion 3 | . 1 2 Utility 4 | . 1 3 Weapon 5 | . 5 . Tool/Special . | . . . Average Slot Usage (%) 97 | . 97 98 Engine 3 | . 3 . Core 9 | . 9 13 Treads 5 | . 5 . Flight 22 | . 22 27 Device 12 | . 12 14 Storage 14 | . 14 14 Energy Gun 17 | . 17 13 Ballistic Gun 10 | . 10 14 Peak Build Rating 19 | 6 19 19 Average Rating 15 | 3 15 18 On Entrance 8 | . 6 19 Naked Turns . | . . . Heaviest Build 21 | 14 21 21 Greatest Support 40 | 40 40 10 Greatest Overweight (x) 3 | 1 3 2 Average Overweight (x) 1 | . 1 2 Largest Inventory Capacity 10 | 8 10 10 Average Capacity 9 | 7 9 10 Most Carried 10 | 7 10 10 Average Carried 8 | 2 8 9 Final Capacity 10 | 8 10 10 Final Carried 10 | 1 10 8 Class Distribution -------------------- 100% | Mutant Dominant Class ---------------- Mutant | -10/Materials Mutant | -10/Mines Resources | -11 -10 -10 ----------- Run | Yrd Mat Min Matter Collected 542 | 208 238 96 Remotely . | . . . Salvage Created 717 | . 475 242 Parts 29 | . 22 7 Haulers Intercepted 2 | . 2 . Recyclers Shooed 1 | . 1 . Parts Field Recycled . | . . . Retrieved Matter . | . . . Parts Self-Destructed . | . . . Prevented . | . . . Kills | -11 -10 -10 ------- Run | Yrd Mat Min Combat Hostiles Destroyed 11 | . 9 2 Guns 11 | . 9 2 Classes Destroyed 4 | . 4 . Hauler 2 | . 2 . Recycler 2 | . 1 1 Swarmer 3 | . 3 . Grunt 8 | . 6 2 Thug 1 | . . 1 Best Kill Streak 3 | . 3 2 Combat Bots Only 3 | . 3 1 Max Kills in Single Turn 1 | . 1 1 Gunslinging . | . . . Exploded . | . . . Melee . | . . . Uniques/NPCs Destroyed . | . . . Combat | -11 -10 -10 -------- Run | Yrd Mat Min Hostile Shots Fired 71 | . 45 26 Missed 19 | . 13 6 Hits 52 | . 32 20 Projectile 52 | . 32 20 AOE 13 | . . 13 Critical Strikes 1 | . . 1 Damage Taken 1020 | . 426 594 Core 264 | . 123 141 Absorbed by Shields . | . . . Core Remaining (%) 100 | 100 . . Volleys Fired 69 | . 46 23 Largest 2 | . 2 2 Hottest 100 | . 100 73 Shots Fired 137 | . 92 45 Gun 135 | . 92 43 Cannon . | . . . Launcher 2 | . . 2 Special . | . . . Kinetic 53 | . 30 23 Thermal 82 | . 62 20 Explosive 2 | . . 2 Electromagnetic . | . . . Robot Hit Streak 10 | . 10 8 Robot Miss Streak 3 | . 3 2 Penetration Max . | . . . Secondary Targets 3 | . 3 . Max Gunslinging Chain 1 | . 1 . Shots Hit Robots 94 | . 62 32 Core Hits 33 | . 22 11 Critical Kills . | . . . Critical Parts Destroyed . | . . . Critical Strikes 7 | . 5 2 Burn 7 | . 5 2 Melee Attacks . | . . . Impact . | . . . Slashing . | . . . Piercing . | . . . Sneak Attacks . | . . . Combat Hostiles . | . . . Follow-up Attacks . | . . . Damage Inflicted 1211 | . 754 457 Guns 1193 | . 754 439 Cannons . | . . . Explosions 18 | . . 18 Melee . | . . . Ramming . | . . . Kinetic 525 | . 251 274 Thermal 668 | . 503 165 Explosive 18 | . . 18 Electromagnetic . | . . . Impact . | . . . Slashing . | . . . Piercing . | . . . Highest Corruption 1 | . 1 1 Average Corruption 1 | . 1 1 Corruption Purged . | . . . Corruption Blocked . | . . . Effects 6 | . 4 2 Matter Fused 2 | . . 2 Heat Flow Errors 1 | . 1 . Energy Discharges 2 | . 2 . Data Loss (minor) 1 | . 1 . Overload Shots . | . . . Overflow Damage . | . . . Projectiles . | . . . Explosions . | . . . Melee . | . . . Knockbacks . | . . . Impact . | . . . Kinetic . | . . . Secondary . | . . . Self-Inflicted Damage 74 | . . 74 Shots 2 | . . 2 Rammed . | . . . Targets Rammed . | . . . Kicked . | . . . Crushed . | . . . Highest Temperature 348 | . 348 218 Average Temperature 94 | . 101 85 Received Heat Transfer 276 | . 198 78 Siege Activations . | . . . Martial Activations . | . . . Shielding Activations . | . . . Robots Disrupted . | . . . Combat Hostiles . | . . . Robots Corrupted . | . . . Combat Hostiles . | . . . Parts Fried . | . . . Impact Corruptions . | . . . Robots Melted 1 | . 1 . Combat Hostiles . | . . . Parts Melted 3 | . 3 . Heat Transferred 2479 | . 1850 629 Parts Sabotaged . | . . . Parts Stolen . | . . . Parts Stripped . | . . . Power Chain Reactions . | . . . Alert | -11 -10 -10 ------- Run | Yrd Mat Min Maximum Alert Level . | . . . Low Security (%) 100 | 100 100 100 Level 1 . | . . . Level 2 . | . . . Level 3 . | . . . Level 4 . | . . . Level 5 . | . . . High Security . | . . . Max Security . | . . . Peak Influence 70 | . 70 35 Initial . | . . . Average 9 | . 10 7 Influence Increases 326 | . 270 56 Destroy 0b10 Robot/C 220 | . 180 40 Destroy 0b10 Robot/NC 20 | . 15 5 Destroy Leader 54 | . 44 10 Destroy Structure 2 | . 1 1 Lose Combat Pursuer 30 | . 30 . Influence Decreases 326 | . 270 56 Time Decay 315 | . 260 55 Lost Part 11 | . 10 1 Squads Dispatched . | . . . Investigation . | . . . Extermination . | . . . Reinforcement . | . . . Assault . | . . . Garrison . | . . . Intercept . | . . . Searches Triggered . | . . . Construction Impeded . | . . . Haulers Reinforced . | . . . Active Scanning Responses . | . . . Cargo Convoy Interrupts . | . . . Stealth | -11 -10 -10 --------- Run | Yrd Mat Min Distress Signals 1 | . 1 . Communications Jammed . | . . . Distress Signals . | . . . Times Spotted 27 | . 24 3 Peak Tracking Total 4 | . 4 1 Tactical Retreats 1 | . 1 . Traps | -11 -10 -10 ------- Run | Yrd Mat Min Traps Triggered 2 | . 2 . Indirectly . | . . . Trap Hack Attempts . | . . . Triggered . | . . . Disarmed . | . . . Reprogrammed . | . . . Reused . | . . . Traps Extracted . | . . . Installed . | . . . Triggered . | . . . Machines | -11 -10 -10 ---------- Run | Yrd Mat Min Machines Disabled . | . . . Max in Single Turn . | . . . Machines Repaired . | . . . Machines Dismantled . | . . . Machines Sabotaged . | . . . Overloaded Fab Kills . | . . . Hacking | -11 -10 -10 --------- Run | Yrd Mat Min Machines Accessed 4 | . 4 . Terminals 3 | . 3 . Fabricators . | . . . Repair Stations 1 | . 1 . Recycling Units . | . . . Scanalyzers . | . . . Garrison Access . | . . . Total Hacks 11 | . 11 . Successful 6 | . 6 . Failed 5 | . 5 . Catastrophic . | . . . Database Lockouts . | . . . Manual 5 | . 5 . Terminals 8 | . 8 . Fabricators . | . . . Repair Stations 3 | . 3 . Recycling Units . | . . . Scanalyzers . | . . . Garrison Access . | . . . Terminal Hacks 3 | . 3 . Record 1 | . 1 . Alert Level 1 | . 1 . Dispatch Records 1 | . 1 . Fabricator Hacks . | . . . Repair Station Hacks 1 | . 1 . Scan Component 1 | . 1 . Recycling Unit Hacks . | . . . Scanalyzer . | . . . Garrison Access Hacks . | . . . Unauthorized Hacks 2 | . 2 . Terminals 2 | . 2 . Botnet 1 | . 1 . Skim 1 | . 1 . Fabricators . | . . . Repair Stations . | . . . Recycling Units . | . . . Scanalyzers . | . . . Garrison Access . | . . . Data Cores Recovered . | . . . Used . | . . . Hacking Detections 3 | . 3 . Full Trace Events . | . . . Feedback Events . | . . . Feedback Blocked . | . . . Robot Schematics Acquired . | . . . Robots Built . | . . . Authchips . | . . . Time . | . . . Total Robot Build Rating . | . . . Part Schematics Acquired . | . . . Parts Built . | . . . Authchips . | . . . Time . | . . . Total Part Build Rating . | . . . Parts Repaired . | . . . Time . | . . . Parts Recycled . | . . . Recycled Matter . | . . . Retrieved Matter . | . . . Retrieved Components . | . . . Parts Scanalyzed . | . . . Part Schematics Acquired . | . . . Parts Damaged . | . . . Bothacking | -11 -10 -10 ------------ Run | Yrd Mat Min Used RIF Installer . | . . . Robots Hacked . | . . . Non-combat . | . . . Combat . | . . . Robot Hacks Applied . | . . . Relay Couplers Released . | . . . Fabnet Peak Effective % . | . . . Robots Rewired . | . . . Allies Hacked . | . . . Hacks Repelled . | . . . Allies | -11 -10 -10 -------- Run | Yrd Mat Min Total Allies 1 | . . 1 Largest Group 1 | . . 1 Highest-Rated Group 31 | . . 31 Highest-Rated Ally 31 | . . 31 Total Orders . | . . . Ally Attacks . | . . . Total Damage . | . . . Kills . | . . . Allies Corrupted . | . . . Allies Melted . | . . . Intel | -11 -10 -10 ------- Run | Yrd Mat Min Active Infowar (turns) 474 | . 474 . Structural 214 | . 214 . Seismic 260 | . 260 . Robot Analysis Total . | . . . Derelict Logs Recovered 1 | . . 1 Drone Launches . | . . . Drone Recoveries . | . . . Exploration | -11 -10 -10 ------------- Run | Yrd Mat Min Turns Passed 1998 | 64 1721 213 Spaces Moved 918 | 43 797 78 Core 19 | 19 . . Treads 195 | 24 171 . Legs . | . . . Wheels . | . . . Hover . | . . . Flight 704 | . 626 78 Fastest Speed 50 | 50 107 177 Average Speed 163 | 119 164 177 Slowest Speed 270 | 160 270 177 Overloaded Moves . | . . . Propulsion Burnouts . | . . . Robots Hopped . | . . . Potential Cave-ins . | . . . Cave-ins Triggered . | . . . Exploration Rate (%) 40 | 3 99 18 Regions Visited 2 Branch Regions 1 Pre-discovered Areas . | . . . Known Exits Taken . | . . . Unknown Exits Taken 2 | 1 1 . Scrap Searched 1 | . . 1 Spaces Dug . | . . . Terrain Destroyed 6 | . . 6 Melee . | . . . Projectile . | . . . AOE 6 | . . 6 Terrain Rammed . | . . . Walls Destroyed . | . . . Machines Disabled . | . . . Actions | -11 -10 -10 --------- Run | Yrd Mat Min Total 1282 | 56 1116 110 Wait 228 | . 224 4 Move 916 | 42 796 78 Hop . | . . . Pick Up 29 | 7 21 1 Fast Attach 5 | 1 4 . Attach 10 | 5 3 2 Detach . | . . . Swap 7 | . 6 1 Drop 18 | 1 16 1 Fire 69 | . 46 23 Melee . | . . . Ram . | . . . Kick . | . . . Crush . | . . . Escape Stasis . | . . . Rewire . | . . . Trap . | . . . Miscellaneous . | . . . Route ------- -11/Scrapyard -10/Materials (discovered 5 exits: [*Mat x3] / [*Min x2]) -10/Mines (discovered 1 exit: [*Mat]) History --------- Turn | Location | Event 4 | -11/Scrapyard | Discovered new exit (range 15) 65 | -11/Scrapyard | Entered Materials 142 | -10/Materials | Discovered new exit (range 9) 306 | -10/Materials | Build established: Mutant 494 | -10/Materials | Discovered new exit (range 14) 909 | -10/Materials | Discovered new exit (range 16) 1289 | -10/Materials | Discovered new exit (range 8) 1417 | -10/Materials | Discovered new exit (range 16) 1786 | -10/Materials | Entered Mines 1789 | -10/Mines | Received a Mining Laser from a helpful Derelict 1874 | -10/Mines | Core integrity fell below 50% 1977 | -10/Mines | YI-UF0 nonchalantly dropped a Grenade Launcher on the ground 1991 | -10/Mines | Discovered new exit (range 7) 1992 | -10/Mines | Core integrity fell below 20% 1999 | -10/Mines | Destroyed by YI-UF0 with YI-UF0's Doublenader Last Messages --------------- 01926_ R-06 Scavenger collects Tractor Beam. 01930_ K-01 Serf collects debris. 01961_ R-06 Scavenger collects Aluminum Leg. 01962_ K-01 Serf collects debris. 01977_ YI-UF0 nonchalantly drops a Grenade Launcher on the ground. 01979_ YI-UF0 mumbles something. 01980_ K-01 Serf collects debris. 01987_ Med. Laser destroyed. 01987_ Lgt. Nuclear Core destroyed. 01988_ YI-UF0 mumbles something. 01988_ YI-UF0: "BOOM TO YOU TOO!" 01989_ Imp. Flight Unit destroyed. 01989_ YI-UF0: "WHAAM!" 01989_ T-07 Excavator destroyed. 01991_ The unstable cave ceiling collapses. 01991_ EXIT=FOUND 01994_ The unstable cave ceiling collapses. 01999_ Grenade Launcher destroyed. 01999_ Imp. Treads destroyed. Map ----- +----------------------------------------------------+ | ?????????????????????????# #???#|#??????? | | ?????????????????????????# #???#%#??????? | | ?????????????????????????# #####!#??????? | | ?????????????????????????# % #??????? | | ?????????????????????????# #######??????? | | ?????????????????????????# #????????????? | | ?????????????????????????# %#????????????? | | ????????????????????????## %#????????????? | | ???????????????????????## #????????????? | | ???????????????????????# ##???????????? | | ???????????????????????# #????????##?? | | ???????????????????????# #???#### ##? | | ??????????????????????## #??## #? | | ??????????????????????# #??# #? | | ??????????????????????# #### #? | | ??????????????????????# ## #? | | ??????????????????????# ##? | | ??????????????????????## u ###?? | | ???????????????????????## ##???? | | ????????????????????????# ### ##????? | | ?????????????????????#### #### #?????? | | ?????????????????????# ### ##?????? | | ????????????????????### #####??????? | | ????????????????????# #??????????? | | ????????????????????# g #??????????? | | ????????????????????# @ #???????????? | | ?????????????? #???????? | | ?????????????# < #???????? | | ?????????????# = ## #????? | | ?????????????# # ##??## #????? | | ?????????????# # # ###???????#????? | | ????????????# ###??????????????? | | ???????????? ######?????????????????? | | ????????????? ?#????????????????????????? | | ????????????? ???????????????????????????? | | ?????????????????????????????????????????? | | ?????????????????????????????????????????? | | ?????????????????????????????????????????? | | ?????????????????????????????????????????? | | ?????????????????????????????????????????? | | ?????????????????????????????????????????? | | ?????????????????????????????????????????? | | ?????????????????????????????????????????? | | ?????????????????????????????????????????? | | ?????????????????????????????????????????? | | ?????????????????????????????????????????? | | ?????????????????????????????????????????? | | ?????????????????????????????????????????? | | | | | +----------------------------------------------------+ Best States ------------- Heat Dissipation 39 Energy Generation 14 Energy Capacity 250 Matter Stores 300 Matter Capacity 300 Sight Range 16 Terrain Scan Density 10 Evasion (%) 50 Recoil Reduction 2 Item Schematics ----------------- None Robot Schematics ------------------ None Fabricated ------------ Nothing Repaired ---------- Nothing Alien Tech Used ----------------- None Achievements -------------- None Challenges ------------ None Game ------ Seed GhostMinesnifferKatana Manual? 0 Play Time 00:18:17 Cumulative 142.7 hours Start 2025.05.29 @ 03:21:37 End 2025.07.19 @ 14:49:05 Sessions 3 Manual Loads 0 Difficulty Rogue Special Mode None Game No. 72 Rogue 59 Adventurer 13 Explorer 0 Win Type - Total 1 Types 1/0/0/0/0/0/0/0/0/0 Lore% 35 Gallery% 39 Achievement% 40 Wizard Run 0 Options --------- Layout 1 ASCII 0 Keyboard 0 Movement Arrows Keybinds 0 Fullscreen 1 Font 24/Smallcaps Map View 50x35 Zoom Use 0% Tactical HUD 1 Map Filters NONE Filters NONE Steam 0 RUN: b2c46873-5f19-4a66-a33b-7cd6224d96af